fUSD/lending_fUSD_20241010
["ID","MTS","AMOUNT","RATE_DAILY","PERIOD"]
[340113519,1728594631979,-604.98,0.00011,2]
[340113520,1728594631991,-291.26630725,0.00011,2]
[340113521,1728594632007,-1467.87324433,0.00011,2]
[340113522,1728594632019,-1018.39912832,0.00011,2]
[340113523,1728594632027,-666.58864421,0.00011,2]
[340113535,1728594637876,-250.0,0.00010849,2]
[340113536,1728594637886,-190.33636741,0.00010999,2]
[340113537,1728594637895,-2925.61363259,0.00011,2]
[340113538,1728594637931,-364.55288824,0.00011,2]
[340113539,1728594637990,-549.411646,0.00011,2]
[340113540,1728594638002,-1231.76374629,0.00011,2]
[340113541,1728594639713,-300.0,0.00011,2]
[340113542,1728594639770,-524.18661403,0.00011,2]
[340113543,1728594639782,-1183.4105122,0.00011,2]
[340113544,1728594639793,-3028.109966,0.00011,2]
[340113545,1728594639935,-10428.06311016,0.00011,2]
[340113546,1728594639992,-5655.43328721,0.00011,2]
[340113547,1728594640002,-300937.25953251,0.00011,2]
[340113548,1728594640049,-598.72278352,0.00011,2]
[340113757,1728594642781,-465.003543,0.00011,2]
[340113758,1728594642793,-4246.81921635,0.00011,2]
[340113759,1728594642804,-942.316296,0.00011,2]
[340113760,1728594642837,-548.79774281,0.00011,2]
[340113761,1728594642848,-20464.29,0.00011,2]
[340113762,1728594642894,-730.07140233,0.00011,2]
[340113763,1728594642908,-652.62529538,0.00011,2]
[340113764,1728594642920,-250100.0,0.00011,2]
[340113765,1728594642931,-21219.02850396,0.00011,2]
[340113766,1728594642954,-1424.8447092,0.00011,2]
[340113767,1728594643009,-562.6023957,0.00011,2]
[340113770,1728594645693,-528.0,0.00011,2]
[340113771,1728594645703,-75.28558204,0.00011,2]
[340113772,1728594645715,-474.935303,0.00011,2]
[340113773,1728594645751,-11728.4416875,0.00011,2]
[340113774,1728594645762,-3145.66036694,0.00011,2]
[340113775,1728594645774,-2006.85565305,0.00011,2]
[340113776,1728594645785,-812.74759037,0.00011,2]
[340113777,1728594645796,-1647.49819795,0.00011,2]
[340113778,1728594645807,-1874.06416438,0.00011,2]
[340113779,1728594645819,-859.94059326,0.00011,2]
[340113780,1728594645829,-734.01641473,0.00011,2]
[340113781,1728594645920,-943.31862009,0.00011,2]
[340113782,1728594645931,-7828.07686301,0.00011,2]
[340113783,1728594645975,-3929.113636,0.00011,2]
[340113784,1728594645989,-743.3523116,0.00011,2]
[340113785,1728594646001,-588.94,0.00011,2]
[340113843,1728594768392,347.54,8.81e-05,2]
[340113851,1728595362201,343.05,8.331e-05,2]
[340113886,1728595831842,-239.39,0.00010251,2]
[340113887,1728595831851,-1000.0,0.00010341,2]
[340113888,1728595831860,-250.0,0.00010372,2]
[340113889,1728595831872,-157.73970547,0.00010407,2]
[340113890,1728595831882,-211.4569654,0.000105,2]
[340113891,1728595831893,-93.28576721,0.000105,2]
[340113892,1728595831903,-186.44,0.00010507,2]
[340113893,1728595831912,-224.43,0.00010517,2]
[340113894,1728595831921,-7.16000049,0.00010595,2]
[340113895,1728595831932,-335.88999951,0.00010595,2]
[340113896,1728595831942,-300.0,0.00010898,2]
[340113897,1728595831951,-150.0,0.00010898,2]
[340113898,1728595831961,-4845.0971574,0.00010899,2]
[340113899,1728595831972,-3213.773173,0.00010899,2]
[340113900,1728595831985,-717.09057553,0.00010899,2]
[340113901,1728595831995,-10259.50060597,0.00010899,2]
[340113902,1728595832005,-3243.0573,0.000109,2]
[340113903,1728595832015,-1789.8595,0.000109,2]
[340113904,1728595832024,-499.99,0.000109,2]
[340113905,1728595832034,-423.89,0.000109,2]
[340113906,1728595832044,-423.89,0.000109,2]
[340113907,1728595832054,-2500.0,0.000109,2]
[340113908,1728595832063,-1250.0,0.000109,2]
[340113909,1728595832073,-1250.0,0.000109,2]
[340113910,1728595832083,-1716.93326061,0.000109,2]
[340113911,1728595832092,-164.65,0.00010959,2]
[340113912,1728595832101,-155.23,0.00010959,2]
[340113913,1728595832111,-161.87,0.00010959,2]
[340113914,1728595832120,-212.15,0.00010959,2]
[340113915,1728595832130,-12936.2416412,0.00010995,2]
[340113916,1728595832142,-3251.2994436,0.00010995,2]
[340113917,1728595832152,-150.01,0.00010999,2]
[340113918,1728595832161,-236.6113339,0.00010999,2]
[340113919,1728595832170,-37807.84381705,0.00011,2]
[340113920,1728595832180,-342051.0929095,0.00011,2]
[340113921,1728595832195,-2250.77499616,0.00011,2]
[340113922,1728595832207,-610.66193002,0.00011,2]
[340113935,1728595837988,-907.675,0.00011,2]
[340113936,1728595838000,-20084.97053767,0.00011,2]
[340113937,1728595838012,-1407.12373208,0.00011,2]
[340113938,1728595838154,-1311.59189252,0.00011,2]
[340113939,1728595838214,-32442.66504613,0.00011,2]
[340113940,1728595838225,-544.38170658,0.00011,2]
[340113941,1728595838331,-426.51970403,0.00011,2]
[340113946,1728595839966,-818.36380514,0.00011,2]
[340113947,1728595839978,-2886.7526086,0.00011,2]
[340113948,1728595839989,-947.76313376,0.00011,2]
[340114044,1728595842953,-460.19327445,0.00011,2]
[340114045,1728595843123,-78325.81671427,0.00011,2]
[340114049,1728595846029,-11992.15225505,0.00011,2]
[340114050,1728595846042,-6246.29304,0.00011,2]
[340114051,1728595846053,-1496.775,0.00011,2]
[340114052,1728595846197,-10017.05453858,0.00011,2]
[340114053,1728595985559,308.74,8.595e-05,2]
[340114054,1728596188513,200.0,0.00010221,2]
[340114055,1728596222137,182.41,0.00010213,2]
[340114056,1728596272274,184.7,0.00010208,2]
[340114057,1728596403447,250.0,0.00010138,2]
[340114058,1728596432475,11980.03593424,0.00010138,2]
[340114059,1728596432502,11889.96406576,0.00010138,2]
[340114060,1728596437878,754.69,0.00010135,2]
[340114061,1728596449827,282.57,0.00010182,2]
[340114063,1728596502154,150.0,0.00010101,2]
[340114064,1728596502174,136.14,0.00010101,2]
[340114065,1728596619643,318.05,0.0001021,2]
[340114066,1728596655702,313.06,8.346e-05,2]
[340114067,1728596691507,150.0,0.00010196,2]
[340114068,1728596691527,150.0,0.00010196,2]
[340114069,1728596691547,150.0,0.00010196,2]
[340114070,1728596691566,150.0,0.00010196,2]
[340114071,1728596691586,150.0,0.00010196,2]
[340114072,1728596691606,90.0,0.00010196,2]
[340114084,1728597032081,-200.0,0.00010245,2]
[340114085,1728597032091,-250.0,0.00010245,2]
[340114086,1728597032101,-158.61,0.00010247,2]
[340114087,1728597032111,-200.0,0.00010251,2]
[340114088,1728597032120,-184.7,0.00010259,2]
[340114089,1728597032130,-179.54,0.00010275,2]
[340114090,1728597032139,-300.0,0.00010609,2]
[340114091,1728597032150,-313.06,0.0001061,2]
[340114092,1728597032160,-300.0,0.00010899,2]
[340114093,1728597032170,-499.99,0.000109,2]
[340114094,1728597032180,-1975.12308429,0.000109,2]
[340114095,1728597032189,-1000.0,0.000109,2]
[340114096,1728597032199,-499.99,0.0001091,2]
[340114097,1728597032208,-1610.26,0.0001091,2]
[340114098,1728597032222,-150.99,0.0001091,2]
[340114099,1728597032231,-150.66,0.00010959,2]
[340114100,1728597032240,-322.85,0.00010959,2]
[340114101,1728597032250,-160.65,0.00010959,2]
[340114102,1728597032261,-250.0,0.00010959,2]
[340114103,1728597032270,-1500.0,0.00010959,2]
[340114104,1728597032280,-150.0,0.00010996,2]
[340114105,1728597032289,-2607.5432686,0.00010997,2]
[340114106,1728597032300,-45293.1216182,0.00010997,2]
[340114107,1728597032311,-7997.4591681,0.00010997,2]
[340114108,1728597032321,-295.129363,0.00010997,2]
[340114110,1728597032331,-166.80647998,0.00010997,2]
[340114112,1728597032341,-150.01,0.00010999,2]
[340114114,1728597032350,-2672.67010294,0.00011,2]
[340114116,1728597032362,-1287.62195801,0.00011,2]
[340114117,1728597032374,-30119.13128551,0.00011,2]
[340114119,1728597032384,-384513.81159596,0.00011,2]
[340114120,1728597032396,-13574.64946955,0.00011,2]
[340114121,1728597032408,-284.48168963,0.00011,2]
[340114122,1728597032420,-15676.5,0.00011,2]
[340114128,1728597038292,-2370.32269623,0.00010259,2]
[340114153,1728597040067,-1459.22887404,0.00010259,2]
[340114154,1728597040622,-5244.58188863,0.00010259,2]
[340114155,1728597040637,-421.66372381,0.00010259,2]
[340114156,1728597040648,-300.0,0.00010259,2]
[340114157,1728597040660,-594.39655094,0.00010259,2]
[340114175,1728597043126,-14153.84242725,0.00010259,2]
[340114176,1728597043136,-200298.20019813,0.00011,2]
[340114177,1728597043145,-1757988.49908949,0.00011,2]
[340114178,1728597043156,-304274.11885814,0.00011,2]
[340114179,1728597043165,-228389.19779647,0.00011,2]
[340114180,1728597043176,-133903.54419115,0.00011,2]
[340114181,1728597043239,-500.57827625,0.00011,2]
[340114202,1728597046112,-10381.9722114,0.00011,2]
[340114203,1728597046124,-346.1774948,0.00011,2]
[340114204,1728597046229,-2008.43148739,0.00011,2]
[340114220,1728597449664,150.0,8.314e-05,2]
[340114221,1728597449686,150.0,8.314e-05,2]
[340114222,1728597449707,61.47,8.314e-05,2]
[340114223,1728597493891,88.53,0.00010202,2]
[340114224,1728597493913,150.0,0.00010202,2]
[340114225,1728597493933,299.49,0.00010202,2]
[340114226,1728597493957,1556.5,0.00010202,2]
[340114227,1728597496817,250.0,0.00010202,2]
[340114228,1728597605858,793.0,0.00010154,2]
[340114229,1728597622281,11815.09,0.00010154,2]
[340114230,1728597744385,237.17,0.00010155,2]
[340114231,1728597823432,200.0,0.00010189,2]
[340114232,1728597967960,380.89,8.219e-05,2]
[340114233,1728598041536,158.61,9.799e-05,2]
[340114234,1728598086369,250.0,9.795e-05,2]
[340114235,1728598197154,250.0,9.798e-05,2]
[340114236,1728598199233,603.75,9.798e-05,2]
[340114253,1728598232287,-474.46635641,0.00010329,2]
[340114255,1728598232298,-525.53364359,0.00010329,2]
[340114257,1728598232308,-174.52,0.00010373,2]
[340114259,1728598232318,-380.89,0.00010465,2]
[340114261,1728598232330,-357.28914677,0.00010543,2]
[340114263,1728598232338,-357.28914677,0.00010556,2]
[340114265,1728598232347,-150.0,0.00010643,2]
[340114267,1728598232357,-150.0,0.0001065,2]
[340114269,1728598232366,-150.0,0.0001065,2]
[340114271,1728598232376,-150.0,0.00010656,2]
[340114273,1728598232385,-150.0,0.00010662,2]
[340114275,1728598232395,-150.0,0.0001067,2]
[340114277,1728598232404,-150.0,0.0001067,2]
[340114278,1728598232414,-252.84,0.0001067,2]
[340114279,1728598232422,-499.99,0.0001067,2]
[340114280,1728598232431,-150.0,0.00010677,2]
[340114282,1728598232440,-150.0,0.00010679,2]
[340114283,1728598232449,-150.0,0.00010688,2]
[340114284,1728598232458,-150.0,0.00010688,2]
[340114285,1728598232467,-150.0,0.00010689,2]
[340114286,1728598232477,-150.0,0.00010693,2]
[340114287,1728598232486,-150.0,0.00010694,2]
[340114288,1728598232495,-150.0,0.00010694,2]
[340114289,1728598232504,-269.14000001,0.00010695,2]
[340114290,1728598232513,-150.0,0.000107,2]
[340114291,1728598232523,-150.0,0.00010701,2]
[340114292,1728598232532,-150.0,0.0001071,2]
[340114293,1728598232542,-300.0,0.00010722,2]
[340114294,1728598232551,-150.0,0.00010723,2]
[340114295,1728598232560,-150.0,0.00010723,2]
[340114296,1728598232569,-150.0,0.00010726,2]
[340114297,1728598232578,-150.0,0.00010726,2]
[340114298,1728598232587,-156.21976284,0.00010727,2]
[340114299,1728598232596,-150.0,0.00010727,2]
[340114300,1728598232605,-150.0,0.00010729,2]
[340114301,1728598232615,-150.0,0.00010729,2]
[340114302,1728598232623,-150.0,0.0001073,2]
[340114303,1728598232633,-150.0,0.0001073,2]
[340114304,1728598232642,-150.0,0.00010731,2]
[340114305,1728598232651,-1500.0,0.00010732,2]
[340114307,1728598232660,-150.0,0.0001074,2]
[340114309,1728598232669,-150.0,0.00010745,2]
[340114310,1728598232678,-150.0,0.00010747,2]
[340114312,1728598232687,-150.0,0.00010753,2]
[340114314,1728598232696,-150.0,0.00010755,2]
[340114317,1728598232705,-150.0,0.00010762,2]
[340114320,1728598232714,-150.0,0.00010763,2]
[340114323,1728598232723,-150.0,0.00010769,2]
[340114325,1728598232731,-150.0,0.0001077,2]
[340114327,1728598232741,-150.0,0.00010772,2]
[340114329,1728598232750,-150.0,0.00010772,2]
[340114331,1728598232759,-150.0,0.00010773,2]
[340114333,1728598232768,-150.0,0.00010777,2]
[340114335,1728598232778,-150.0,0.0001078,2]
[340114337,1728598232787,-150.0,0.00010781,2]
[340114339,1728598232795,-150.0,0.00010786,2]
[340114341,1728598232804,-150.0,0.00010786,2]
[340114343,1728598232814,-300.0,0.00010791,2]
[340114345,1728598232823,-150.0,0.00010792,2]
[340114347,1728598232831,-1500.0,0.00010795,2]
[340114349,1728598232840,-626.28708165,0.000108,2]
[340114351,1728598232849,-4899.9963,0.000108,2]
[340114352,1728598232861,-7944.6916,0.000108,2]
[340114354,1728598232871,-78763.0879,0.000108,2]
[340114356,1728598232879,-150.0,0.00010802,2]
[340114358,1728598232888,-150.0,0.00010808,2]
[340114360,1728598232899,-150.0,0.00010813,2]
[340114362,1728598232908,-150.0,0.00010814,2]
[340114364,1728598232917,-150.0,0.00010817,2]
[340114366,1728598232927,-150.0,0.0001082,2]
[340114368,1728598232938,-150.0,0.0001082,2]
[340114370,1728598232947,-150.0,0.0001082,2]
[340114372,1728598232956,-150.0,0.00010821,2]
[340114374,1728598232966,-150.0,0.00010822,2]
[340114376,1728598232975,-150.0,0.00010822,2]
[340114378,1728598232984,-150.0,0.00010823,2]
[340114380,1728598232992,-150.0,0.00010824,2]
[340114382,1728598233001,-150.0,0.00010825,2]
[340114384,1728598233011,-150.0,0.00010827,2]
[340114386,1728598233021,-150.0,0.00010837,2]
[340114387,1728598233030,-150.0,0.00010841,2]
[340114389,1728598233039,-150.0,0.00010844,2]
[340114391,1728598233048,-150.0,0.00010852,2]
[340114393,1728598233058,-150.0,0.00010855,2]
[340114395,1728598233067,-150.0,0.00010855,2]
[340114397,1728598233078,-150.0,0.00010859,2]
[340114398,1728598233087,-150.0,0.00010862,2]
[340114400,1728598233096,-150.0,0.00010863,2]
[340114402,1728598233105,-150.0,0.00010867,2]
[340114404,1728598233114,-150.0,0.00010868,2]
[340114405,1728598233124,-1500.0,0.00010868,2]
[340114406,1728598233133,-150.0,0.00010869,2]
[340114407,1728598233142,-150.0,0.00010872,2]
[340114408,1728598233152,-150.0,0.00010872,2]
[340114409,1728598233161,-500.0,0.00010873,2]
[340114410,1728598233171,-150.0,0.00010874,2]
[340114411,1728598233180,-150.0,0.00010875,2]
[340114412,1728598233189,-150.0,0.00010877,2]
[340114413,1728598233200,-150.0,0.00010882,2]
[340114414,1728598233208,-150.0,0.00010884,2]
[340114415,1728598233218,-150.0,0.00010886,2]
[340114416,1728598233227,-150.0,0.00010887,2]
[340114417,1728598233236,-150.0,0.00010887,2]
[340114418,1728598233246,-150.0,0.00010888,2]
[340114419,1728598233274,-150.0,0.00010888,2]
[340114420,1728598233283,-150.0,0.00010896,2]
[340114421,1728598233292,-1877.9168442,0.00010899,2]
[340114422,1728598233302,-226.1768,0.000109,2]
[340114423,1728598233311,-979.244766,0.000109,2]
[340114424,1728598233321,-5513.4101,0.000109,2]
[340114425,1728598233330,-63490.2871,0.000109,2]
[340114426,1728598233340,-32222.5235768,0.000109,2]
[340114427,1728598233352,-910.67391534,0.000109,2]
[340114428,1728598233364,-636.79253411,0.000109,2]
[340114429,1728598233376,-9255.13457725,0.000109,2]
[340114430,1728598233387,-2519.95441177,0.000109,2]
[340114431,1728598233399,-731.15094616,0.000109,2]
[340114432,1728598233410,-2903.71306986,0.000109,2]
[340114433,1728598233421,-3421.55845167,0.000109,2]
[340114434,1728598233432,-2228.53585342,0.000109,2]
[340114435,1728598233443,-1594.44501813,0.000109,2]
[340114436,1728598233454,-42144.30584549,0.000109,2]
[340114437,1728598233463,-500.0,0.000109,2]
[340114438,1728598233472,-8487.1344,0.000109,2]
[340114439,1728598233482,-1596.2983,0.000109,2]
[340114440,1728598233491,-1464.9854,0.000109,2]
[340114441,1728598233500,-626.28708165,0.000109,2]
[340114442,1728598233510,-150.0,0.000109,2]
[340114443,1728598233519,-150.0,0.000109,2]
[340114444,1728598233528,-278.0306,0.000109,2]
[340114445,1728598233538,-755.4,0.000109,2]
[340114446,1728598233547,-438.72,0.000109,2]
[340114447,1728598233556,-755.4,0.000109,2]
[340114448,1728598233566,-579.46,0.000109,2]
[340114449,1728598233576,-423.89,0.000109,2]
[340114450,1728598233585,-175.99072209,0.000109,2]
[340114451,1728598233595,-150.0,0.00010905,2]
[340114452,1728598233604,-150.0,0.00010907,2]
[340114453,1728598233614,-150.0,0.00010915,2]
[340114454,1728598233623,-1298.0,0.00010915,2]
[340114455,1728598233632,-558.0,0.00010915,2]
[340114456,1728598233641,-623.581,0.00010915,2]
[340114457,1728598233650,-3354.0,0.00010915,2]
[340114458,1728598233659,-2035.47,0.00010915,2]
[340114459,1728598233668,-806.0,0.00010915,2]
[340114460,1728598233677,-1909.0,0.00010915,2]
[340114461,1728598233687,-1573.151,0.00010919,2]
[340114462,1728598233696,-150.0,0.00010919,2]
[340114463,1728598233705,-1091.09780268,0.00010919,2]
[340114464,1728598233731,-42.91119732,0.00010919,2]
[340114465,1728598233740,-825.61755763,0.00010919,2]
[340114466,1728598233752,-323.38244237,0.00010919,2]
[340114467,1728598233761,-150.36,0.00010959,2]
[340114468,1728598233771,-258.28,0.00010959,2]
[340114469,1728598233781,-155.23,0.00010959,2]
[340114470,1728598233791,-895.9549722,0.00010959,2]
[340114479,1728598238627,-606.98,0.00010919,2]
[340114488,1728598240258,-476.02,0.00010919,2]
[340114489,1728598240271,-124.07,0.00010959,2]
[340114490,1728598240315,-479.9750278,0.00010959,2]
[340114491,1728598240324,-134.92815216,0.00010959,2]
[340114492,1728598240336,-115.07184784,0.00010959,2]
[340114493,1728598240346,-150.0,0.00010968,2]
[340114494,1728598240356,-500.0,0.00010973,2]
[340114495,1728598240367,-248.03818619,0.00010973,2]
[340114496,1728598240376,-500.0,0.00010973,2]
[340114497,1728598240386,-12940.08996598,0.00010997,2]
[340114498,1728598240398,-8467.04682707,0.00010997,2]
[340114499,1728598240410,-3921.10659425,0.00010997,2]
[340114500,1728598240422,-300.59930483,0.00010997,2]
[340114501,1728598240494,-10019.90894031,0.00010997,2]
[340114513,1728598243308,-760.21,0.00010997,2]
[340114514,1728598243321,-44585.28678959,0.00010997,2]
[340114515,1728598243330,-270.98910221,0.00010999,2]
[340114516,1728598243339,-36538.47507919,0.00011,2]
[340114518,1728598243349,-34882.08394332,0.00011,2]
[340114520,1728598243361,-250100.0,0.00011,2]
[340114522,1728598243372,-358.9324995,0.00011,2]
[340114524,1728598243382,-534.7850022,0.00011,2]
[340114525,1728598243547,-2648.1499,0.00011,2]
[340114526,1728598243607,-1408.37711133,0.00011,2]
[340114527,1728598475749,150.0,8.36e-05,2]
[340114528,1728598475774,192.8,8.36e-05,2]
[340114530,1728598731183,1473.28164196,0.00010217,2]
[340114531,1728599009256,333.16,8.501e-05,2]
[340114533,1728599277769,-225.14,0.00010235,2]
[340114535,1728599382744,225.14,0.00010188,2]
[340114536,1728599407956,250.0,0.00010188,2]
[340114541,1728599431356,-24.86,0.00010235,2]
[340114542,1728599431365,-179.54,0.00010336,2]
[340114544,1728599431374,-237.17,0.00010374,2]
[340114546,1728599431384,-234.53,0.00010736,2]
[340114548,1728599431571,-765.47,0.00010736,2]
[340114549,1728599431582,-150.0,0.0001074,2]
[340114550,1728599431591,-150.0,0.00010755,2]
[340114551,1728599431602,-333.16,0.00010765,2]
[340114552,1728599431611,-150.0,0.00010779,2]
[340114553,1728599431620,-4474.55660991,0.000108,2]
[340114554,1728599431650,-1637.98179009,0.000108,2]
[340114555,1728599431659,-150.0,0.00010838,2]
[340114556,1728599431669,-300.0,0.00010879,2]
[340114557,1728599431678,-15298.1610031,0.0001088,2]
[340114558,1728599431687,-1260.06463122,0.00010899,2]
[340114559,1728599431696,-1690.12515978,0.000109,2]
[340114561,1728599431706,-153.38,0.00010959,2]
[340114562,1728599431715,-206.62,0.00010959,2]
[340114563,1728599431724,-500.02,0.00010959,2]
[340114564,1728599431734,-270.98910221,0.00010999,2]
[340114565,1728599431744,-150.0,0.00010999,2]
[340114566,1728599431753,-165.62793374,0.00010999,2]
[340114567,1728599431762,-36554.63072873,0.00011,2]
[340114568,1728599431771,-186691.72258313,0.00011,2]
[340114574,1728599439452,-572.10965519,0.000109,2]
[340114575,1728599439464,-427.89034481,0.000109,2]
[340114576,1728599439476,-549.08882155,0.00010919,2]
[340114577,1728599439533,-261.91117845,0.00010919,2]
[340114578,1728599439545,-338.00882155,0.00011,2]
[340114581,1728599442479,-71691.54812472,0.00011,2]
[340114582,1728599442494,-250100.0,0.00011,2]
[340114603,1728599445584,-244.2,0.00010919,2]
[340114604,1728599445598,-6012.10104,0.00011,2]
[340114610,1728599652693,299.84,8.96e-05,2]
[340114615,1728600207450,284.84,8.899e-05,2]
[340114623,1728600631565,-250.0,0.00010745,2]
[340114624,1728600631577,-1000.0,0.00010796,2]
[340114625,1728600631588,-483.0,0.00010817,2]
[340114626,1728600631599,-300.0,0.00010899,2]
[340114627,1728600631609,-1870.2883,0.000109,2]
[340114628,1728600631618,-312.49,0.000109,2]
[340114629,1728600631628,-1521.11264382,0.000109,2]
[340114630,1728600631637,-5351.98365659,0.000109,2]
[340114631,1728600631648,-104.12625783,0.00010959,2]
[340114632,1728600631668,-54.80374217,0.00010959,2]
[340114633,1728600631677,-165.29,0.00010959,2]
[340114634,1728600631686,-258.22214169,0.00011,2]
[340114635,1728600631697,-33464.11088908,0.00011,2]
[340114636,1728600631709,-784.34351086,0.00011,2]
[340114637,1728600631730,-191.47111422,0.00011,2]
[340114638,1728600631739,-1711.78105386,0.00011,2]
[340114639,1728600631750,-2438.0,0.00011,2]
[340114640,1728600631762,-894.38164469,0.00011,2]
[340114641,1728600631772,-741.8811006,0.00011,2]
[340114642,1728600631784,-3547.89675971,0.00011,2]
[340114643,1728600631796,-377.06213163,0.00011,2]
[340114644,1728600631808,-712.02367317,0.00011,2]
[340114645,1728600631820,-2394.04740967,0.00011,2]
[340114646,1728600631831,-5438.28687281,0.00011,2]
[340114647,1728600631843,-4247.03282957,0.00011,2]
[340114648,1728600631855,-10494.45274948,0.00011,2]
[340114649,1728600631866,-1367.57781629,0.00011,2]
[340114650,1728600631877,-844.4503927,0.00011,2]
[340114651,1728600631889,-6959.30203298,0.00011,2]
[340114652,1728600631905,-485.03142996,0.00011,2]
[340114653,1728600631916,-251.35461498,0.00011,2]
[340114654,1728600631927,-1522.06617273,0.00011,2]
[340114655,1728600631938,-2127.12108198,0.00011,2]
[340114656,1728600631950,-639.51717591,0.00011,2]
[340114662,1728600637954,-421.399227,0.00011,2]
[340114663,1728600637967,-918.803945,0.00011,2]
[340114664,1728600637979,-589.49681089,0.00011,2]
[340114665,1728600637991,-4181.1963038,0.00011,2]
[340114666,1728600638002,-2235.6136962,0.00011,2]
[340114667,1728600638014,-12434.35441547,0.00011,2]
[340114668,1728600638026,-468.87,0.00011,2]
[340114669,1728600638038,-902.63081299,0.00011,2]
[340114670,1728600638050,-600.68835525,0.00011,2]
[340114671,1728600638061,-6525.06999584,0.00011,2]
[340114672,1728600638074,-1239.22320358,0.00011,2]
[340114673,1728600638088,-615.002,0.00011,2]
[340114674,1728600638104,-6985.98856048,0.00011,2]
[340114676,1728600638115,-576.87446552,0.00011,2]
[340114678,1728600638126,-537.91228333,0.00011,2]
[340114680,1728600638137,-2896.39516468,0.00011,2]
[340114683,1728600638148,-345.44,0.00011,2]
[340114815,1728600639594,-1641.52714712,0.00011,2]
[340114818,1728600639619,-1094.57625342,0.00011,2]
[340114821,1728600639631,-518.424,0.00011,2]
[340114824,1728600639652,-9899.60970702,0.00011,2]
[340114832,1728600639726,-2015.94855758,0.00011,2]
[340114834,1728600639738,-840.77658634,0.00011,2]
[340114836,1728600639753,-719.26763437,0.00011,2]
[340114847,1728600639858,-395.92311807,0.00011,2]
[340114849,1728600639870,-657.38466157,0.00011,2]
[340114851,1728600639881,-1714.25660773,0.00011,2]
[340114853,1728600639892,-1007.52312096,0.00011,2]
[340114855,1728600639905,-1383.75,0.00011,2]
[340114857,1728600639916,-477.21,0.00011,2]
[340114859,1728600639927,-714.1225845,0.00011,2]
[340114861,1728600639942,-1805.2829824,0.00011,2]
[340114863,1728600639953,-3325.47472128,0.00011,2]
[340114866,1728600639964,-52885.1900186,0.00011,2]
[340114975,1728600642710,-506.45646649,0.00011,2]
[340114976,1728600642722,-71691.54812472,0.00011,2]
[340114977,1728600642732,-250100.0,0.00011,2]
[340114978,1728600642743,-601.56,0.00011,2]
[340114979,1728600642755,-537.1369296,0.00011,2]
[340114980,1728600785059,280.01,8.967e-05,2]
[340114981,1728601308352,266.0,8.439e-05,2]
[340114982,1728601543620,702.64963,0.0001,2]
[340114983,1728601827006,400.0,0.0001,2]
[340114984,1728601827027,400.0,0.0001,2]
[340114985,1728601827049,400.0,0.0001,2]
[340114986,1728601827070,400.0,0.0001,2]
[340114987,1728601827091,400.0,0.0001,2]
[340114988,1728601827112,400.0,0.0001,2]
[340114989,1728601827133,400.0,0.0001,2]
[340114990,1728601827153,400.0,0.0001,2]
[340114991,1728601827352,400.0,0.0001,2]
[340114992,1728601827374,400.0,0.0001,2]
[340114993,1728601827399,26000.0,0.0001,2]
[340115006,1728601831854,-150.0,0.00010438,2]
[340115007,1728601831863,-250.0,0.00010491,2]
[340115008,1728601831875,-800.0,0.00010549,2]